[Event "Late-Titled-Tuesday-Blitz-September-05-2023"]
[Site "Chess.com"]
[Date "2023.09.05"]
[Round "3"]
[White "traack"]
[Black "ketster"]
[Result "1/2-1/2"]
[WhiteElo "2375"]
[BlackElo "2543"]
[TimeControl "180+1"]
[EndTime "14:30:46 PDT"]
[Termination "Game drawn - insufficient material"]

1. e4 {[%clk 0:03:00.9]} 1... c6 {[%clk 0:02:56.1]} 2. Nf3 {[%clk 0:03:00.6]}
2... d5 {[%clk 0:02:55.9]} 3. Nc3 {[%clk 0:03:01.5]} 3... dxe4 {[%clk
0:02:53.9]} 4. Nxe4 {[%clk 0:03:01.9]} 4... Nf6 {[%clk 0:02:54.7]} 5. Qe2 {[%clk
0:03:00.3]} 5... Nxe4 {[%clk 0:02:53.9]} 6. Qxe4 {[%clk 0:02:59.7]} 6... Qd5
{[%clk 0:02:54.1]} 7. Qf4 {[%clk 0:02:56.4]} 7... Qf5 {[%clk 0:02:45.7]} 8. Qe3
{[%clk 0:02:56.7]} 8... g6 {[%clk 0:02:38.9]} 9. d4 {[%clk 0:02:23.2]} 9... Bg7
{[%clk 0:02:30]} 10. Bd3 {[%clk 0:02:22.9]} 10... Qe6 {[%clk 0:02:30.5]} 11. O-O
{[%clk 0:02:21.9]} 11... Qxe3 {[%clk 0:02:29.9]} 12. fxe3 {[%clk 0:02:19.2]}
12... O-O {[%clk 0:02:29.1]} 13. c3 {[%clk 0:02:15.8]} 13... Nd7 {[%clk
0:02:27.7]} 14. e4 {[%clk 0:02:16]} 14... e5 {[%clk 0:02:25.4]} 15. Be3 {[%clk
0:02:10.4]} 15... exd4 {[%clk 0:02:13.4]} 16. cxd4 {[%clk 0:02:08.2]} 16... Nf6
{[%clk 0:02:11.1]} 17. Rfe1 {[%clk 0:01:58.5]} 17... Re8 {[%clk 0:02:04.5]} 18.
Bd2 {[%clk 0:01:58.4]} 18... Bg4 {[%clk 0:01:45.5]} 19. Bc3 {[%clk 0:01:54.2]}
19... Rad8 {[%clk 0:01:41.5]} 20. h3 {[%clk 0:01:53.1]} 20... Bxf3 {[%clk
0:01:36]} 21. gxf3 {[%clk 0:01:52.6]} 21... Nh5 {[%clk 0:01:36.6]} 22. d5 {[%clk
0:01:28.3]} 22... Bxc3 {[%clk 0:01:20.3]} 23. bxc3 {[%clk 0:01:27.8]} 23... cxd5
{[%clk 0:01:17.9]} 24. exd5 {[%clk 0:01:13.7]} 24... Rxe1+ {[%clk 0:01:15]} 25.
Rxe1 {[%clk 0:01:14.6]} 25... Rxd5 {[%clk 0:01:15.3]} 26. Be4 {[%clk 0:01:11.8]}
26... Rd7 {[%clk 0:01:09.2]} 27. c4 {[%clk 0:01:08]} 27... Nf4 {[%clk
0:01:08.3]} 28. h4 {[%clk 0:01:06.9]} 28... Rc7 {[%clk 0:01:07.5]} 29. Rb1
{[%clk 0:01:00.9]} 29... b6 {[%clk 0:01:02.5]} 30. Rb4 {[%clk 0:01:01.4]} 30...
Kg7 {[%clk 0:00:51.9]} 31. Kf2 {[%clk 0:00:59.5]} 31... Kf6 {[%clk 0:00:43.1]}
32. Ke3 {[%clk 0:00:59.1]} 32... Ne6 {[%clk 0:00:41.2]} 33. Bd5 {[%clk
0:00:58.2]} 33... Nc5 {[%clk 0:00:41.6]} 34. Rb1 {[%clk 0:00:57]} 34... Re7+
{[%clk 0:00:42.1]} 35. Kd2 {[%clk 0:00:52.7]} 35... h6 {[%clk 0:00:37.4]} 36.
Rg1 {[%clk 0:00:49.7]} 36... Re5 {[%clk 0:00:36.5]} 37. Rg4 {[%clk 0:00:41.4]}
37... Rh5 {[%clk 0:00:33.6]} 38. Rf4+ {[%clk 0:00:40.4]} 38... Rf5 {[%clk
0:00:34.2]} 39. Rg4 {[%clk 0:00:40.7]} 39... h5 {[%clk 0:00:30.9]} 40. Rd4
{[%clk 0:00:39.1]} 40... Ke5 {[%clk 0:00:30.1]} 41. Kc3 {[%clk 0:00:35.6]} 41...
Na4+ {[%clk 0:00:23.9]} 42. Kd3 {[%clk 0:00:36.1]} 42... Nc5+ {[%clk 0:00:17.7]}
43. Kc3 {[%clk 0:00:36.6]} 43... f6 {[%clk 0:00:16.5]} 44. Rd1 {[%clk
0:00:35.1]} 44... Rf4 {[%clk 0:00:14.3]} 45. Re1+ {[%clk 0:00:35.2]} 45... Kd6
{[%clk 0:00:14.4]} 46. Re8 {[%clk 0:00:35.2]} 46... Rxh4 {[%clk 0:00:14]} 47.
Rd8+ {[%clk 0:00:33.6]} 47... Ke7 {[%clk 0:00:13.8]} 48. Rg8 {[%clk 0:00:34.5]}
48... g5 {[%clk 0:00:13.9]} 49. Rg7+ {[%clk 0:00:34.2]} 49... Kd6 {[%clk
0:00:14.4]} 50. Rxa7 {[%clk 0:00:35.1]} 50... Nd7 {[%clk 0:00:11.7]} 51. Ra8
{[%clk 0:00:31.8]} 51... Rh2 {[%clk 0:00:11.5]} 52. Re8 {[%clk 0:00:24.7]} 52...
h4 {[%clk 0:00:10.7]} 53. Re6+ {[%clk 0:00:25.3]} 53... Kc7 {[%clk 0:00:11.2]}
54. Re7 {[%clk 0:00:25.9]} 54... Kd8 {[%clk 0:00:09.8]} 55. Rh7 {[%clk
0:00:22.7]} 55... Nc5 {[%clk 0:00:08.1]} 56. Kb4 {[%clk 0:00:17.1]} 56... Rb2+
{[%clk 0:00:06.5]} 57. Ka3 {[%clk 0:00:17]} 57... Rb1 {[%clk 0:00:04.9]} 58. Rf7
{[%clk 0:00:15]} 58... h3 {[%clk 0:00:03.7]} 59. Rh7 {[%clk 0:00:15]} 59... Rh1
{[%clk 0:00:04.1]} 60. f4 {[%clk 0:00:13.7]} 60... Rh2 {[%clk 0:00:03.9]} 61.
fxg5 {[%clk 0:00:13.9]} 61... fxg5 {[%clk 0:00:04.7]} 62. Bf3 {[%clk 0:00:10.2]}
62... Ke8 {[%clk 0:00:03.1]} 63. Bg4 {[%clk 0:00:10.2]} 63... Nd3 {[%clk
0:00:02.5]} 64. Rxh3 {[%clk 0:00:06]} 64... Rxh3 {[%clk 0:00:02.8]} 65. Bxh3
{[%clk 0:00:06.9]} 65... Nf2 {[%clk 0:00:03.1]} 66. Bf5 {[%clk 0:00:06]} 66...
g4 {[%clk 0:00:03.1]} 67. Be6 {[%clk 0:00:05.6]} 67... g3 {[%clk 0:00:02.7]} 68.
Bd5 {[%clk 0:00:06.5]} 68... Kd7 {[%clk 0:00:02.1]} 69. Kb4 {[%clk 0:00:06.8]}
69... Nd3+ {[%clk 0:00:01.8]} 70. Kc3 {[%clk 0:00:05.6]} 70... Nc5 {[%clk
0:00:02.3]} 71. Bg2 {[%clk 0:00:04.1]} 71... Kd6 {[%clk 0:00:02.8]} 72. Kb4
{[%clk 0:00:04.7]} 72... Kc7 {[%clk 0:00:02.7]} 73. a4 {[%clk 0:00:05]} 73...
Ne6 {[%clk 0:00:03.2]} 74. a5 {[%clk 0:00:03.3]} 74... bxa5+ {[%clk 0:00:03.4]}
75. Kxa5 {[%clk 0:00:03.9]} 75... Kd6 {[%clk 0:00:04]} 76. Kb4 {[%clk
0:00:04.4]} 76... Kc7 {[%clk 0:00:03.6]} 77. Kc3 {[%clk 0:00:05]} 77... Nf4
{[%clk 0:00:04.1]} 78. Bf3 {[%clk 0:00:04]} 78... Kd6 {[%clk 0:00:04.4]} 79. Kd4
{[%clk 0:00:03.7]} 79... Ne6+ {[%clk 0:00:04.1]} 80. Ke3 {[%clk 0:00:03.9]}
80... Nc5 {[%clk 0:00:04.3]} 81. Bg2 {[%clk 0:00:04.2]} 81... Nb3 {[%clk
0:00:04.7]} 82. Kf4 {[%clk 0:00:04.5]} 82... Nd2 {[%clk 0:00:04.8]} 83. Kxg3
{[%clk 0:00:05.4]} 83... Nxc4 {[%clk 0:00:05.4]} 1/2-1/2

[Event "Late-Titled-Tuesday-Blitz-September-05-2023"]
[Site "Chess.com"]
[Date "2023.09.05"]
[Round "3"]
[White "CrushingKings"]
[Black "mbojan"]
[Result "1/2-1/2"]
[WhiteElo "2534"]
[BlackElo "2822"]
[TimeControl "180+1"]
[EndTime "14:30:49 PDT"]
[Termination "Game drawn - insufficient material"]

1. Nf3 {[%clk 0:02:58.4]} 1... g6 {[%clk 0:02:59.7]} 2. d4 {[%clk 0:02:55.2]}
2... Bg7 {[%clk 0:02:57.7]} 3. g3 {[%clk 0:02:53.2]} 3... d6 {[%clk 0:02:56.7]}
4. Bg2 {[%clk 0:02:53.2]} 4... e5 {[%clk 0:02:57.4]} 5. dxe5 {[%clk 0:02:51.5]}
5... dxe5 {[%clk 0:02:58.3]} 6. Qxd8+ {[%clk 0:02:51.6]} 6... Kxd8 {[%clk
0:02:59.2]} 7. O-O {[%clk 0:02:51.5]} 7... f6 {[%clk 0:02:33.4]} 8. e4 {[%clk
0:02:42.3]} 8... Be6 {[%clk 0:02:31.1]} 9. Be3 {[%clk 0:02:42]} 9... Nd7 {[%clk
0:02:28]} 10. Nfd2 {[%clk 0:02:38.5]} 10... c6 {[%clk 0:02:17.2]} 11. Nc3 {[%clk
0:02:35.2]} 11... Kc7 {[%clk 0:02:17.2]} 12. a4 {[%clk 0:02:32.9]} 12... Bh6
{[%clk 0:02:05]} 13. f4 {[%clk 0:01:59.9]} 13... Ne7 {[%clk 0:02:01.5]} 14. Rfe1
{[%clk 0:01:50.4]} 14... Rhe8 {[%clk 0:01:49.6]} 15. Bf1 {[%clk 0:01:50.4]}
15... exf4 {[%clk 0:01:32]} 16. gxf4 {[%clk 0:01:46]} 16... f5 {[%clk
0:01:31.8]} 17. e5 {[%clk 0:01:42.2]} 17... Nd5 {[%clk 0:01:24.3]} 18. Nxd5+
{[%clk 0:01:41.3]} 18... Bxd5 {[%clk 0:01:25.2]} 19. Nc4 {[%clk 0:01:18.5]}
19... Bf8 {[%clk 0:00:54.7]} 20. Kf2 {[%clk 0:01:05.4]} 20... Nc5 {[%clk
0:00:46.8]} 21. Rad1 {[%clk 0:00:37.6]} 21... Nxa4 {[%clk 0:00:26]} 22. Nd6
{[%clk 0:00:37.5]} 22... Bxd6 {[%clk 0:00:21.5]} 23. exd6+ {[%clk 0:00:37.5]}
23... Kd7 {[%clk 0:00:21.6]} 24. c4 {[%clk 0:00:37.6]} 24... Be4 {[%clk
0:00:20.3]} 25. b3 {[%clk 0:00:33.9]} 25... Nb6 {[%clk 0:00:19.7]} 26. Kg3
{[%clk 0:00:25.6]} 26... Nc8 {[%clk 0:00:19]} 27. c5 {[%clk 0:00:25.6]} 27... a6
{[%clk 0:00:17.2]} 28. Kh4 {[%clk 0:00:20.3]} 28... h6 {[%clk 0:00:16.5]} 29.
Bc4 {[%clk 0:00:18.8]} 29... Na7 {[%clk 0:00:11.5]} 30. Bf7 {[%clk 0:00:18.4]}
30... Rg8 {[%clk 0:00:12.1]} 31. Bxg8 {[%clk 0:00:18.4]} 31... Rxg8 {[%clk
0:00:12.6]} 32. Rg1 {[%clk 0:00:11.1]} 32... Nb5 {[%clk 0:00:12.1]} 33. Bc1
{[%clk 0:00:08.9]} 33... Nc3 {[%clk 0:00:11.4]} 34. Rd2 {[%clk 0:00:07.9]} 34...
Nd5 {[%clk 0:00:06.5]} 35. Rf2 {[%clk 0:00:08]} 35... Nf6 {[%clk 0:00:03.3]} 36.
Bb2 {[%clk 0:00:07]} 36... Nd5 {[%clk 0:00:03.5]} 37. Bd4 {[%clk 0:00:05]} 37...
Ke6 {[%clk 0:00:03.8]} 38. Re2 {[%clk 0:00:04.3]} 38... Nxf4 {[%clk 0:00:03.5]}
39. Re3 {[%clk 0:00:03.9]} 39... g5+ {[%clk 0:00:03.8]} 40. Kg3 {[%clk
0:00:03.7]} 40... Nd5 {[%clk 0:00:04.5]} 41. Re2 {[%clk 0:00:03.7]} 41... Kd7
{[%clk 0:00:03.8]} 42. h4 {[%clk 0:00:03.1]} 42... gxh4+ {[%clk 0:00:03]} 43.
Kxh4 {[%clk 0:00:03.5]} 43... Rxg1 {[%clk 0:00:02.7]} 44. Bxg1 {[%clk
0:00:04.4]} 44... Nf4 {[%clk 0:00:02.6]} 45. Rh2 {[%clk 0:00:04.4]} 45... Ke6
{[%clk 0:00:02.1]} 46. Be3 {[%clk 0:00:04.3]} 46... Nd5 {[%clk 0:00:02.4]} 47.
Bxh6 {[%clk 0:00:04.9]} 47... Nf6 {[%clk 0:00:02.4]} 48. Re2 {[%clk 0:00:03.2]}
48... Nd7 {[%clk 0:00:03.3]} 49. Be3 {[%clk 0:00:03.2]} 49... a5 {[%clk
0:00:03.5]} 50. Re1 {[%clk 0:00:02.8]} 50... Ke5 {[%clk 0:00:03.9]} 51. Kg5
{[%clk 0:00:02.7]} 51... Nf8 {[%clk 0:00:04.3]} 52. Kh6 {[%clk 0:00:02.4]} 52...
Nd7 {[%clk 0:00:03.5]} 53. Kg5 {[%clk 0:00:02.2]} 53... Nf8 {[%clk 0:00:03.1]}
54. Bf4+ {[%clk 0:00:02.6]} 54... Kd5 {[%clk 0:00:03.1]} 55. Kf6 {[%clk
0:00:02.1]} 55... Nd7+ {[%clk 0:00:03]} 56. Ke7 {[%clk 0:00:02.2]} 56... Nxc5
{[%clk 0:00:03.4]} 57. d7 {[%clk 0:00:02.7]} 57... Nxd7 {[%clk 0:00:03.9]} 58.
Kxd7 {[%clk 0:00:03.4]} 58... Kd4 {[%clk 0:00:04]} 59. Bd6 {[%clk 0:00:03.9]}
59... b5 {[%clk 0:00:03.7]} 60. Kc7 {[%clk 0:00:03.9]} 60... Kc3 {[%clk
0:00:04.3]} 61. Kb6 {[%clk 0:00:03.7]} 61... Kxb3 {[%clk 0:00:04.9]} 62. Kxa5
{[%clk 0:00:04.4]} 62... Kc3 {[%clk 0:00:05.2]} 63. Rc1+ {[%clk 0:00:04.3]}
63... Kd2 {[%clk 0:00:05.4]} 64. Bf4+ {[%clk 0:00:04.2]} 64... Ke2 {[%clk
0:00:06.1]} 65. Kb4 {[%clk 0:00:04.7]} 65... Kf3 {[%clk 0:00:06.7]} 66. Re1
{[%clk 0:00:04.8]} 66... Kxf4 {[%clk 0:00:06.7]} 67. Kc5 {[%clk 0:00:05.3]}
67... Ke5 {[%clk 0:00:07.4]} 68. Rf1 {[%clk 0:00:05.7]} 68... f4 {[%clk
0:00:07.9]} 69. Rh1 {[%clk 0:00:05.8]} 69... f3 {[%clk 0:00:08.5]} 70. Rh5+
{[%clk 0:00:05.9]} 70... Kf4 {[%clk 0:00:09.2]} 71. Rh8 {[%clk 0:00:06.4]} 71...
Bd5 {[%clk 0:00:09.3]} 72. Rf8+ {[%clk 0:00:07.3]} 72... Kg3 {[%clk 0:00:09.8]}
73. Kd4 {[%clk 0:00:07.2]} 73... f2 {[%clk 0:00:10.2]} 74. Ke3 {[%clk
0:00:07.9]} 74... b4 {[%clk 0:00:02.8]} 75. Rxf2 {[%clk 0:00:07.9]} 75... b3
{[%clk 0:00:03.5]} 76. Rd2 {[%clk 0:00:06.6]} 76... Kg4 {[%clk 0:00:03.7]} 77.
Kd4 {[%clk 0:00:06.9]} 77... Kf5 {[%clk 0:00:03.8]} 78. Kc3 {[%clk 0:00:06.3]}
78... Ke4 {[%clk 0:00:04.4]} 79. Rd1 {[%clk 0:00:05.9]} 79... Ke5 {[%clk
0:00:04.6]} 80. Rd2 {[%clk 0:00:06.4]} 80... Kd6 {[%clk 0:00:05.2]} 81. Rd1
{[%clk 0:00:07]} 81... Kc5 {[%clk 0:00:05.8]} 82. Rd2 {[%clk 0:00:07.5]} 82...
Bc4 {[%clk 0:00:05.9]} 83. Rd4 {[%clk 0:00:07.6]} 83... Bd5 {[%clk 0:00:06.5]}
84. Rb4 {[%clk 0:00:08]} 84... Kd6 {[%clk 0:00:06.6]} 85. Rb8 {[%clk 0:00:08.1]}
85... Ke5 {[%clk 0:00:07.1]} 86. Rd8 {[%clk 0:00:08.2]} 86... Kf5 {[%clk
0:00:07.4]} 87. Rc8 {[%clk 0:00:07.2]} 87... Ke4 {[%clk 0:00:08]} 88. Rxc6
{[%clk 0:00:07.4]} 88... Bxc6 {[%clk 0:00:07.9]} 89. Kxb3 {[%clk 0:00:08]}
1/2-1/2

[Event "Late-Titled-Tuesday-Blitz-September-05-2023"]
[Site "Chess.com"]
[Date "2023.09.05"]
[Round "3"]
[White "IMSlavin"]
[Black "whitemirrorninja"]
[Result "1/2-1/2"]
[WhiteElo "2165"]
[BlackElo "2503"]
[TimeControl "180+1"]
[EndTime "14:31:11 PDT"]
[Termination "Game drawn by repetition"]

1. e4 {[%clk 0:03:00]} 1... c5 {[%clk 0:02:58.4]} 2. g3 {[%clk 0:02:59.8]} 2...
h5 {[%clk 0:02:57.3]} 3. h3 {[%clk 0:02:59.1]} 3... h4 {[%clk 0:02:55.6]} 4. g4
{[%clk 0:02:58.8]} 4... Nc6 {[%clk 0:02:55.8]} 5. Bg2 {[%clk 0:02:57.8]} 5... e6
{[%clk 0:02:51.2]} 6. Nc3 {[%clk 0:02:56.9]} 6... Nf6 {[%clk 0:02:46.7]} 7. f4
{[%clk 0:02:51.5]} 7... d5 {[%clk 0:02:44.7]} 8. e5 {[%clk 0:02:51]} 8... Nd7
{[%clk 0:02:45.4]} 9. Nf3 {[%clk 0:02:48.2]} 9... a6 {[%clk 0:02:43.6]} 10. d3
{[%clk 0:02:37.2]} 10... b5 {[%clk 0:02:42.8]} 11. O-O {[%clk 0:02:34.6]} 11...
Nb6 {[%clk 0:02:42.4]} 12. Bd2 {[%clk 0:02:24.6]} 12... Qc7 {[%clk 0:02:40.7]}
13. Be1 {[%clk 0:02:23.8]} 13... b4 {[%clk 0:02:36.5]} 14. Ne2 {[%clk
0:02:22.3]} 14... a5 {[%clk 0:02:34.1]} 15. Bxh4 {[%clk 0:02:20.9]} 15... Ba6
{[%clk 0:02:28.9]} 16. Bg3 {[%clk 0:02:20.4]} 16... d4 {[%clk 0:02:19.2]} 17.
Ng5 {[%clk 0:02:15.5]} 17... Be7 {[%clk 0:02:13.8]} 18. Ne4 {[%clk 0:02:14.8]}
18... Nd5 {[%clk 0:02:13.4]} 19. Qd2 {[%clk 0:01:53]} 19... O-O-O {[%clk
0:02:02.3]} 20. a3 {[%clk 0:01:43.1]} 20... c4 {[%clk 0:01:57.5]} 21. dxc4
{[%clk 0:01:35]} 21... Bxc4 {[%clk 0:01:55.3]} 22. axb4 {[%clk 0:01:03.1]} 22...
Bxb4 {[%clk 0:01:54.7]} 23. c3 {[%clk 0:01:03.5]} 23... dxc3 {[%clk 0:01:53.3]}
24. bxc3 {[%clk 0:01:03.4]} 24... Nxc3 {[%clk 0:01:50.3]} 25. Nd6+ {[%clk
0:01:00]} 25... Rxd6 {[%clk 0:01:38.9]} 26. exd6 {[%clk 0:00:59.8]} 26... Nxe2+
{[%clk 0:01:32.9]} 27. Qxe2 {[%clk 0:00:57.9]} 27... Qb6+ {[%clk 0:01:32.4]} 28.
Bf2 {[%clk 0:00:52.7]} 28... Bxe2 {[%clk 0:01:21.8]} 29. Bxb6 {[%clk 0:00:52.6]}
29... Kd7 {[%clk 0:01:11.4]} 30. Rf2 {[%clk 0:00:36.9]} 30... Bb5 {[%clk
0:01:06.7]} 31. Bc7 {[%clk 0:00:28]} 31... Bxd6 {[%clk 0:00:59.9]} 32. Bxd6
{[%clk 0:00:26.3]} 32... Kxd6 {[%clk 0:01:00.8]} 33. Bxc6 {[%clk 0:00:25.2]}
33... Kxc6 {[%clk 0:00:58.6]} 34. Rxa5 {[%clk 0:00:24.1]} 34... Rxh3 {[%clk
0:00:58.1]} 35. Kg2 {[%clk 0:00:18.8]} 35... Rc3 {[%clk 0:00:56]} 36. Ra7 {[%clk
0:00:18.3]} 36... f5 {[%clk 0:00:51.8]} 37. Rxg7 {[%clk 0:00:17.4]} 37... Kd5
{[%clk 0:00:48]} 38. gxf5 {[%clk 0:00:16.6]} 38... exf5 {[%clk 0:00:47.5]} 39.
Re7 {[%clk 0:00:17.1]} 39... Bc6 {[%clk 0:00:46.6]} 40. Re5+ {[%clk 0:00:16.9]}
40... Kd4+ {[%clk 0:00:45.5]} 41. Kg1 {[%clk 0:00:14.3]} 41... Be4 {[%clk
0:00:41.3]} 42. Rd2+ {[%clk 0:00:12.5]} 42... Ke3 {[%clk 0:00:39.4]} 43. Rd1
{[%clk 0:00:12.2]} 43... Rc2 {[%clk 0:00:33.6]} 44. Re8 {[%clk 0:00:13.1]} 44...
Rg2+ {[%clk 0:00:32.8]} 45. Kf1 {[%clk 0:00:14]} 45... Rh2 {[%clk 0:00:28.7]}
46. Rg8 {[%clk 0:00:12]} 46... Bf3 {[%clk 0:00:21.4]} 47. Re1+ {[%clk
0:00:11.1]} 47... Kxf4 {[%clk 0:00:19.4]} 48. Rg1 {[%clk 0:00:10.5]} 48... Be4
{[%clk 0:00:17.5]} 49. Rc1 {[%clk 0:00:09.5]} 49... Bd3+ {[%clk 0:00:16.2]} 50.
Ke1 {[%clk 0:00:09.4]} 50... Re2+ {[%clk 0:00:13.6]} 51. Kd1 {[%clk 0:00:09.2]}
51... Ke4 {[%clk 0:00:12]} 52. Rg3 {[%clk 0:00:08.5]} 52... f4 {[%clk
0:00:10.5]} 53. Rxd3 {[%clk 0:00:06.6]} 53... Kxd3 {[%clk 0:00:01.8]} 54. Rc3+
{[%clk 0:00:06]} 54... Kxc3 {[%clk 0:00:01.5]} 55. Kxe2 {[%clk 0:00:06.6]} 55...
Kd4 {[%clk 0:00:02.4]} 56. Kf3 {[%clk 0:00:07.1]} 56... Ke5 {[%clk 0:00:03.3]}
57. Kf2 {[%clk 0:00:06.5]} 57... Kf6 {[%clk 0:00:03]} 58. Kf3 {[%clk 0:00:06.3]}
58... Kf5 {[%clk 0:00:03.7]} 59. Kf2 {[%clk 0:00:06.2]} 59... Kg5 {[%clk
0:00:04.6]} 60. Kf3 {[%clk 0:00:06.1]} 60... Kf5 {[%clk 0:00:05]} 61. Kf2 {[%clk
0:00:06]} 61... Ke6 {[%clk 0:00:04.7]} 62. Kf3 {[%clk 0:00:05.7]} 62... Ke5
{[%clk 0:00:05.4]} 63. Kf2 {[%clk 0:00:06.3]} 63... Ke4 {[%clk 0:00:05.6]} 64.
Ke2 {[%clk 0:00:06.4]} 64... f3+ {[%clk 0:00:06.3]} 65. Kf2 {[%clk 0:00:07.1]}
65... Kf4 {[%clk 0:00:06.9]} 66. Kf1 {[%clk 0:00:07.4]} 66... Kg3 {[%clk
0:00:06.6]} 67. Kg1 {[%clk 0:00:07.6]} 67... Kg4 {[%clk 0:00:06.7]} 68. Kf2
{[%clk 0:00:07.6]} 68... Kf4 {[%clk 0:00:07.3]} 69. Kf1 {[%clk 0:00:08.2]} 69...
Kg3 {[%clk 0:00:07.2]} 70. Kg1 {[%clk 0:00:08.2]} 70... Kf4 {[%clk 0:00:07.2]}
71. Kf2 {[%clk 0:00:08.2]} 71... Ke4 {[%clk 0:00:07.8]} 72. Kf1 {[%clk
0:00:08.6]} 72... Ke3 {[%clk 0:00:08.4]} 73. Ke1 {[%clk 0:00:08.9]} 73... Kd3
{[%clk 0:00:08.9]} 74. Kf2 {[%clk 0:00:08.9]} 74... Ke4 {[%clk 0:00:09.6]} 75.
Kf1 {[%clk 0:00:09.1]} 75... Ke3 {[%clk 0:00:10.1]} 76. Ke1 {[%clk 0:00:09.6]}
76... Kf4 {[%clk 0:00:09.9]} 77. Kf2 {[%clk 0:00:09.5]} 77... Kg4 {[%clk
0:00:09.9]} 78. Kf1 {[%clk 0:00:07.8]} 78... Kf5 {[%clk 0:00:10.1]} 79. Kf2
{[%clk 0:00:07.6]} 79... Ke4 {[%clk 0:00:10.4]} 1/2-1/2